[Event "*** Titled Tuesday Blitz"]
[Site "Chess.com"]
[Date "2020.01.07"]
[Round "2"]
[White "DamianoLew95"]
[Black "Genghis_K"]
[Result "0-1"]
[WhiteElo "2590"]
[BlackElo "2906"]
[TimeControl "180+2"]
[EndTime "13:25:04 PST"]
[Termination "Genghis_K won by resignation"]

1. e4 {[%clk 0:03:01.9]} 1... c5 {[%clk 0:02:59]} 2. Nf3 {[%clk 0:03:02.8]} 2...
d6 {[%clk 0:02:59.3]} 3. d4 {[%clk 0:03:03.7]} 3... cxd4 {[%clk 0:03:01.2]} 4.
Nxd4 {[%clk 0:03:05.3]} 4... Nf6 {[%clk 0:03:02.2]} 5. Nc3 {[%clk 0:03:07]} 5...
a6 {[%clk 0:03:01.6]} 6. a4 {[%clk 0:03:05.4]} 6... e5 {[%clk 0:02:57.5]} 7. Nb3
{[%clk 0:03:03]} 7... Be7 {[%clk 0:02:48.4]} 8. g3 {[%clk 0:03:03.9]} 8... Nc6
{[%clk 0:02:37.8]} 9. Bg2 {[%clk 0:03:03.9]} 9... Bg4 {[%clk 0:02:37.9]} 10. Bf3
{[%clk 0:02:58.4]} 10... h5 {[%clk 0:02:31.5]} 11. Bg5 {[%clk 0:02:52]} 11...
Nb4 {[%clk 0:02:27.6]} 12. Bxf6 {[%clk 0:02:42.1]} 12... Bxf6 {[%clk 0:02:06.6]}
13. Bxg4 {[%clk 0:02:36.9]} 13... hxg4 {[%clk 0:02:08.5]} 14. Nd5 {[%clk
0:02:37.8]} 14... Nxd5 {[%clk 0:02:06.9]} 15. Qxd5 {[%clk 0:02:39.7]} 15... Qc7
{[%clk 0:01:51.6]} 16. c3 {[%clk 0:02:36.5]} 16... Rc8 {[%clk 0:01:45.8]} 17.
Rd1 {[%clk 0:02:33.2]} 17... Be7 {[%clk 0:01:43.2]} 18. Nd2 {[%clk 0:02:19.3]}
18... Qc6 {[%clk 0:01:42.7]} 19. Qxc6+ {[%clk 0:02:06]} 19... bxc6 {[%clk
0:01:41.7]} 20. Nc4 {[%clk 0:01:59.1]} 20... Rd8 {[%clk 0:01:42.1]} 21. Ne3
{[%clk 0:01:56.4]} 21... Kd7 {[%clk 0:01:38.1]} 22. Nxg4 {[%clk 0:01:54.3]}
22... Ke6 {[%clk 0:01:39.8]} 23. Kd2 {[%clk 0:01:47.1]} 23... Rh3 {[%clk
0:01:36.5]} 24. Ke2 {[%clk 0:01:35.4]} 24... g6 {[%clk 0:01:36.3]} 25. Kf3
{[%clk 0:01:30.1]} 25... f5 {[%clk 0:01:37.5]} 26. exf5+ {[%clk 0:01:30.8]}
26... gxf5 {[%clk 0:01:39.4]} 27. Ne3 {[%clk 0:01:31]} 27... Rdh8 {[%clk
0:01:37.7]} 28. Kg2 {[%clk 0:01:31.9]} 28... d5 {[%clk 0:01:37.4]} 29. Nc2
{[%clk 0:01:18.1]} 29... c5 {[%clk 0:01:28.9]} 30. Ne3 {[%clk 0:01:18.1]} 30...
d4 {[%clk 0:01:27.8]} 31. Nc4 {[%clk 0:01:18.1]} 31... Bf6 {[%clk 0:01:27.4]}
32. f3 {[%clk 0:01:17.4]} 32... e4 {[%clk 0:01:27.3]} 33. cxd4 {[%clk
0:01:16.9]} 33... cxd4 {[%clk 0:01:27.4]} 34. b4 {[%clk 0:01:17.3]} 34... R3h7
{[%clk 0:01:22.3]} 35. g4 {[%clk 0:01:14.7]} 35... e3 {[%clk 0:01:19.2]} 36. Nb2
{[%clk 0:01:11.8]} 36... fxg4 {[%clk 0:01:11.5]} 37. fxg4 {[%clk 0:01:11.1]}
37... Be5 {[%clk 0:01:13.1]} 38. h3 {[%clk 0:01:08.1]} 38... Kd5 {[%clk
0:01:14.3]} 39. Nd3 {[%clk 0:01:06.9]} 39... Bd6 {[%clk 0:01:15.4]} 40. Rdf1
{[%clk 0:01:05.4]} 40... Ke4 {[%clk 0:01:15.5]} 41. Rf6 {[%clk 0:00:53.7]} 41...
Kxd3 {[%clk 0:01:04]} 42. Rxd6 {[%clk 0:00:48.3]} 42... e2 {[%clk 0:01:05.2]}
43. Ra1 {[%clk 0:00:43.6]} 43... Rxh3 {[%clk 0:01:02.6]} 44. Ra3+ {[%clk
0:00:36.9]} 44... Kc4 {[%clk 0:01:03.3]} 0-1

[Event "*** Titled Tuesday Blitz"]
[Site "Chess.com"]
[Date "2020.01.07"]
[Round "2"]
[White "HrvojeZagreb"]
[Black "SCIM"]
[Result "0-1"]
[WhiteElo "2222"]
[BlackElo "2482"]
[TimeControl "180+2"]
[EndTime "13:25:08 PST"]
[Termination "SCIM won by resignation"]

1. d4 {[%clk 0:03:01.9]} 1... Nf6 {[%clk 0:02:56.5]} 2. Bf4 {[%clk 0:03:02.5]}
2... d5 {[%clk 0:02:55.5]} 3. e3 {[%clk 0:03:03.3]} 3... e6 {[%clk 0:02:55.8]}
4. Nf3 {[%clk 0:03:03.5]} 4... Bd6 {[%clk 0:02:57.1]} 5. Bg3 {[%clk 0:03:04.2]}
5... O-O {[%clk 0:02:54.6]} 6. Bd3 {[%clk 0:03:03.7]} 6... c5 {[%clk 0:02:55.3]}
7. c3 {[%clk 0:03:04.2]} 7... b6 {[%clk 0:02:51]} 8. Qe2 {[%clk 0:03:00.7]} 8...
Qc7 {[%clk 0:02:50.7]} 9. Nbd2 {[%clk 0:02:57.3]} 9... a5 {[%clk 0:02:44.7]} 10.
e4 {[%clk 0:02:55.1]} 10... Ne8 {[%clk 0:02:03.5]} 11. Bxd6 {[%clk 0:02:50.1]}
11... Nxd6 {[%clk 0:01:58.8]} 12. e5 {[%clk 0:02:51.4]} 12... Nf5 {[%clk
0:01:49.5]} 13. g4 {[%clk 0:02:51.3]} 13... Ne7 {[%clk 0:01:47.1]} 14. Ng5
{[%clk 0:02:31.6]} 14... Ng6 {[%clk 0:01:43]} 15. h4 {[%clk 0:02:21.4]} 15...
Qe7 {[%clk 0:01:31]} 16. Nxh7 {[%clk 0:02:18.2]} 16... Nf4 {[%clk 0:01:14.7]}
17. Qf3 {[%clk 0:02:12]} 17... Nxd3+ {[%clk 0:01:14.4]} 18. Qxd3 {[%clk
0:02:12.2]} 18... Ba6 {[%clk 0:01:15.9]} 19. Qc2 {[%clk 0:02:02.8]} 19... Rc8
{[%clk 0:01:15.6]} 20. Ng5 {[%clk 0:02:01.8]} 20... g6 {[%clk 0:01:14.6]} 21.
dxc5 {[%clk 0:02:01.9]} 21... Nc6 {[%clk 0:01:09.1]} 22. f4 {[%clk 0:02:02]}
22... Qxc5 {[%clk 0:01:04.8]} 23. O-O-O {[%clk 0:01:16.1]} 23... Nb4 {[%clk
0:00:55.6]} 24. Nxe6 {[%clk 0:01:12.8]} 24... Qe3 {[%clk 0:00:45]} 25. Qa4
{[%clk 0:00:52.4]} 25... Rxc3+ {[%clk 0:00:35.2]} 26. Kb1 {[%clk 0:00:30.2]}
26... Bd3+ {[%clk 0:00:34.8]} 27. Ka1 {[%clk 0:00:30.5]} 27... Nc2+ {[%clk
0:00:29.8]} 28. Kb1 {[%clk 0:00:31.5]} 28... Ne1+ {[%clk 0:00:16.8]} 29. Ka1
{[%clk 0:00:31.8]} 29... Nc2+ {[%clk 0:00:15.3]} 30. Kb1 {[%clk 0:00:32.5]}
30... Rcc8 {[%clk 0:00:15.3]} 31. Nf1 {[%clk 0:00:26.2]} 31... Nd4+ {[%clk
0:00:13.3]} 32. Ka1 {[%clk 0:00:25]} 32... Qc1+ {[%clk 0:00:13.1]} 0-1

[Event "*** Titled Tuesday Blitz"]
[Site "Chess.com"]
[Date "2020.01.07"]
[Round "2"]
[White "alishersuleymenov"]
[Black "SirMittensofMittensville"]
[Result "1-0"]
[WhiteElo "2815"]
[BlackElo "2553"]
[TimeControl "180+2"]
[EndTime "13:25:15 PST"]
[Termination "alishersuleymenov won by resignation"]

1. d4 {[%clk 0:03:01.9]} 1... Nf6 {[%clk 0:03:00.1]} 2. Nf3 {[%clk 0:03:03.2]}
2... e6 {[%clk 0:03:00.8]} 3. Bf4 {[%clk 0:03:03.7]} 3... d5 {[%clk 0:03:01.5]}
4. e3 {[%clk 0:03:04.5]} 4... Bd6 {[%clk 0:03:03.4]} 5. Bg3 {[%clk 0:03:05.4]}
5... O-O {[%clk 0:03:04.8]} 6. Nbd2 {[%clk 0:03:06.3]} 6... b6 {[%clk
0:03:06.4]} 7. c3 {[%clk 0:03:07.4]} 7... c5 {[%clk 0:03:06.6]} 8. Bd3 {[%clk
0:03:08.7]} 8... Ba6 {[%clk 0:03:08]} 9. Bxa6 {[%clk 0:03:10]} 9... Nxa6 {[%clk
0:03:09.9]} 10. Qe2 {[%clk 0:03:11.9]} 10... Nb8 {[%clk 0:03:07.5]} 11. Bh4
{[%clk 0:03:11.4]} 11... Nc6 {[%clk 0:03:05.4]} 12. e4 {[%clk 0:03:11]} 12...
dxe4 {[%clk 0:03:04.5]} 13. Nxe4 {[%clk 0:03:11.3]} 13... Be7 {[%clk 0:03:06.2]}
14. Nxf6+ {[%clk 0:03:11]} 14... Bxf6 {[%clk 0:03:08.1]} 15. Bxf6 {[%clk
0:03:12.8]} 15... Qxf6 {[%clk 0:03:09.2]} 16. dxc5 {[%clk 0:03:14.7]} 16... bxc5
{[%clk 0:03:10.9]} 17. O-O {[%clk 0:03:16.3]} 17... Rab8 {[%clk 0:03:06.1]} 18.
Rfd1 {[%clk 0:03:17.2]} 18... Rfd8 {[%clk 0:03:02.7]} 19. h3 {[%clk 0:03:18.5]}
19... h6 {[%clk 0:03:03.5]} 20. Qe4 {[%clk 0:03:05.7]} 20... Rxd1+ {[%clk
0:02:43.9]} 21. Rxd1 {[%clk 0:03:05.3]} 21... Ne7 {[%clk 0:02:22.5]} 22. Ne5
{[%clk 0:03:06.4]} 22... Qf5 {[%clk 0:02:07.3]} 23. Qxf5 {[%clk 0:02:57.5]}
23... Nxf5 {[%clk 0:02:09.2]} 24. b3 {[%clk 0:02:58.5]} 24... Rb7 {[%clk
0:02:06.5]} 25. Rd8+ {[%clk 0:02:56.6]} 25... Kh7 {[%clk 0:02:07.6]} 26. Rc8
{[%clk 0:02:58.2]} 26... f6 {[%clk 0:02:00.5]} 27. Nc4 {[%clk 0:02:58.5]} 27...
Rd7 {[%clk 0:01:58.4]} 28. Rxc5 {[%clk 0:02:59.2]} 28... Rd1+ {[%clk 0:01:59.6]}
29. Kh2 {[%clk 0:03:00.6]} 29... Rf1 {[%clk 0:01:55.4]} 30. f3 {[%clk 0:02:52]}
30... g5 {[%clk 0:01:42.9]} 31. Rc7+ {[%clk 0:02:40]} 31... Kg6 {[%clk
0:01:42.8]} 32. Rxa7 {[%clk 0:02:41.9]} 32... h5 {[%clk 0:01:40.7]} 33. Nd2
{[%clk 0:02:32.3]} 33... Rc1 {[%clk 0:01:24]} 34. Ne4 {[%clk 0:02:32.8]} 34...
Ne3 {[%clk 0:01:21.3]} 35. g4 {[%clk 0:02:16.1]} 35... Rc2+ {[%clk 0:01:11.3]}
36. Kg1 {[%clk 0:02:16.9]} 36... hxg4 {[%clk 0:01:04.9]} 37. hxg4 {[%clk
0:02:18.8]} 37... f5 {[%clk 0:01:01.3]} 38. Nc5 {[%clk 0:01:52.7]} 38... f4
{[%clk 0:00:43.5]} 39. Nd3 {[%clk 0:01:40]} 39... Rxc3 {[%clk 0:00:39.3]} 40.
Rd7 {[%clk 0:01:40.9]} 40... Rc2 {[%clk 0:00:37]} 41. a4 {[%clk 0:01:38.7]}
41... Kf6 {[%clk 0:00:30.1]} 42. a5 {[%clk 0:01:38.3]} 42... Rd2 {[%clk
0:00:28.4]} 43. a6 {[%clk 0:01:36]} 43... Rd1+ {[%clk 0:00:29.4]} 44. Kf2 {[%clk
0:01:36.9]} 44... Rd2+ {[%clk 0:00:30.3]} 45. Ke1 {[%clk 0:01:38.2]} 45... Rd1+
{[%clk 0:00:31.7]} 46. Ke2 {[%clk 0:01:39.2]} 46... Ra1 {[%clk 0:00:31.7]} 47.
Nb4 {[%clk 0:01:39.3]} 47... Ke5 {[%clk 0:00:23.3]} 48. a7 {[%clk 0:01:39.1]}
48... Nd5 {[%clk 0:00:21.5]} 49. Nc6+ {[%clk 0:01:40.5]} 49... Kf6 {[%clk
0:00:21.9]} 50. Rd8 {[%clk 0:01:42]} 50... Ra2+ {[%clk 0:00:19.9]} 51. Kd3
{[%clk 0:01:43.1]} 51... Nc7 {[%clk 0:00:17.3]} 52. Rc8 {[%clk 0:01:42.6]} 1-0

[Event "*** Titled Tuesday Blitz"]
[Site "Chess.com"]
[Date "2020.01.07"]
[Round "2"]
[White "moro182"]
[Black "ehrenfeld"]
[Result "1-0"]
[WhiteElo "2756"]
[BlackElo "2539"]
[TimeControl "180+2"]
[EndTime "13:25:16 PST"]
[Termination "moro182 won on time"]

1. d4 {[%clk 0:03:01.9]} 1... f5 {[%clk 0:02:58.6]} 2. c4 {[%clk 0:03:02.7]}
2... Nf6 {[%clk 0:02:57.8]} 3. g3 {[%clk 0:03:04.2]} 3... g6 {[%clk 0:02:54.5]}
4. Bg2 {[%clk 0:03:05.4]} 4... Bg7 {[%clk 0:02:55.2]} 5. b3 {[%clk 0:03:07.1]}
5... O-O {[%clk 0:02:55.3]} 6. Bb2 {[%clk 0:03:08.6]} 6... d6 {[%clk 0:02:56.1]}
7. Nf3 {[%clk 0:03:10.2]} 7... e5 {[%clk 0:02:39.2]} 8. dxe5 {[%clk 0:03:09.6]}
8... Ng4 {[%clk 0:02:39.8]} 9. O-O {[%clk 0:03:04.2]} 9... Nc6 {[%clk
0:02:37.1]} 10. Nc3 {[%clk 0:03:04.1]} 10... dxe5 {[%clk 0:02:31.1]} 11. Qd5+
{[%clk 0:02:46.9]} 11... Kh8 {[%clk 0:02:14]} 12. Qxd8 {[%clk 0:02:34]} 12...
Nxd8 {[%clk 0:01:58.3]} 13. h3 {[%clk 0:02:26.3]} 13... Nh6 {[%clk 0:01:54]} 14.
e4 {[%clk 0:02:16]} 14... f4 {[%clk 0:01:22]} 15. Nb5 {[%clk 0:01:44.8]} 15...
c6 {[%clk 0:00:26]} 16. Nd6 {[%clk 0:01:23.2]} 16... Nhf7 {[%clk 0:00:20.8]} 17.
Nxc8 {[%clk 0:01:21.4]} 17... Rxc8 {[%clk 0:00:20.9]} 18. Rfd1 {[%clk
0:01:21.1]} 18... Ne6 {[%clk 0:00:21.1]} 19. h4 {[%clk 0:01:12.7]} 19... Rcd8
{[%clk 0:00:20.5]} 20. Bh3 {[%clk 0:01:06]} 20... Nd4 {[%clk 0:00:21.4]} 21.
Nxd4 {[%clk 0:01:02.3]} 21... exd4 {[%clk 0:00:21.9]} 22. gxf4 {[%clk
0:01:03.6]} 22... Nh6 {[%clk 0:00:18]} 23. Bc1 {[%clk 0:00:54.6]} 23... c5
{[%clk 0:00:12.3]} 24. Bd2 {[%clk 0:00:55]} 24... Nf7 {[%clk 0:00:08.7]} 25.
Rab1 {[%clk 0:00:53.3]} 25... Bh6 {[%clk 0:00:07.8]} 26. b4 {[%clk 0:00:53.1]}
26... b6 {[%clk 0:00:08.7]} 27. bxc5 {[%clk 0:00:53.7]} 27... bxc5 {[%clk
0:00:09.8]} 28. e5 {[%clk 0:00:55.3]} 28... Rde8 {[%clk 0:00:08.2]} 29. Kg2
{[%clk 0:00:34.3]} 29... Nd8 {[%clk 0:00:08.5]} 30. Kg3 {[%clk 0:00:35.9]} 30...
Ne6 {[%clk 0:00:08.1]} 31. Bxe6 {[%clk 0:00:36.7]} 31... Rxe6 {[%clk 0:00:08.9]}
32. Rb7 {[%clk 0:00:38.4]} 32... Rb6 {[%clk 0:00:04.8]} 33. Rb1 {[%clk
0:00:34.2]} 33... Rxb1 {[%clk 0:00:04.2]} 34. Rxb1 {[%clk 0:00:36.1]} 1-0

[Event "*** Titled Tuesday Blitz"]
[Site "Chess.com"]
[Date "2020.01.07"]
[Round "2"]
[White "1stSecond"]
[Black "Karacsonyi_Gellert"]
[Result "1-0"]
[WhiteElo "2826"]
[BlackElo "2566"]
[TimeControl "180+2"]
[EndTime "13:25:21 PST"]
[Termination "1stSecond won by resignation"]

1. Nf3 {[%clk 0:03:01.9]} 1... Nf6 {[%clk 0:03:00.7]} 2. c4 {[%clk 0:03:01.9]}
2... e6 {[%clk 0:03:01.7]} 3. g3 {[%clk 0:02:56.5]} 3... d5 {[%clk 0:03:03.2]}
4. d4 {[%clk 0:02:56.6]} 4... dxc4 {[%clk 0:03:03.4]} 5. Bg2 {[%clk 0:02:57.3]}
5... Bd7 {[%clk 0:03:04.7]} 6. Qc2 {[%clk 0:02:52.7]} 6... Bc6 {[%clk
0:03:05.5]} 7. Qxc4 {[%clk 0:02:49]} 7... Be7 {[%clk 0:03:06.6]} 8. Nc3 {[%clk
0:02:48.4]} 8... O-O {[%clk 0:03:07.3]} 9. O-O {[%clk 0:02:49.5]} 9... a6 {[%clk
0:03:08.5]} 10. a4 {[%clk 0:02:48.3]} 10... b5 {[%clk 0:03:09.5]} 11. Qb3 {[%clk
0:02:49.3]} 11... b4 {[%clk 0:03:10.1]} 12. Nd1 {[%clk 0:02:48.4]} 12... a5
{[%clk 0:03:10.1]} 13. Bf4 {[%clk 0:02:46.3]} 13... Bd5 {[%clk 0:03:08.6]} 14.
Qc2 {[%clk 0:02:46.8]} 14... c6 {[%clk 0:03:07.9]} 15. Ne3 {[%clk 0:02:43.1]}
15... Be4 {[%clk 0:03:08.6]} 16. Qc1 {[%clk 0:02:43.1]} 16... Nbd7 {[%clk
0:03:09.3]} 17. Rd1 {[%clk 0:02:40.2]} 17... Nb6 {[%clk 0:03:09.5]} 18. Ne5
{[%clk 0:02:36.7]} 18... Bxg2 {[%clk 0:03:09]} 19. Kxg2 {[%clk 0:02:38.6]} 19...
Rc8 {[%clk 0:02:56.4]} 20. N3c4 {[%clk 0:02:35.8]} 20... Qd5+ {[%clk 0:02:54.8]}
21. f3 {[%clk 0:02:35.2]} 21... Nxc4 {[%clk 0:02:53.7]} 22. Nxc4 {[%clk
0:02:37.1]} 22... c5 {[%clk 0:02:45.9]} 23. Nb6 {[%clk 0:02:37.5]} 23... Qh5
{[%clk 0:02:26.1]} 24. Nxc8 {[%clk 0:02:36.8]} 24... Rxc8 {[%clk 0:02:28]} 25.
e4 {[%clk 0:02:32.1]} 25... c4 {[%clk 0:01:47.4]} 26. Qe3 {[%clk 0:02:30.6]}
26... c3 {[%clk 0:01:45.1]} 27. Rac1 {[%clk 0:02:31.2]} 27... c2 {[%clk
0:01:46.3]} 28. Rd2 {[%clk 0:02:31.9]} 28... g5 {[%clk 0:01:39.7]} 29. Bxg5
{[%clk 0:02:27.3]} 29... b3 {[%clk 0:00:43.6]} 30. Bxf6 {[%clk 0:02:21.9]} 30...
Bxf6 {[%clk 0:00:45.5]} 31. Qxb3 {[%clk 0:02:23.4]} 31... Bg5 {[%clk 0:00:45]}
32. Rdxc2 {[%clk 0:02:23.6]} 32... Rf8 {[%clk 0:00:41.7]} 33. f4 {[%clk
0:02:23.6]} 33... Bf6 {[%clk 0:00:39.9]} 34. Qf3 {[%clk 0:02:24.1]} 34... Qg6
{[%clk 0:00:38.6]} 35. e5 {[%clk 0:02:23.3]} 35... Bg7 {[%clk 0:00:39.3]} 36. g4
{[%clk 0:02:22.1]} 36... h5 {[%clk 0:00:39.6]} 37. h3 {[%clk 0:02:19.8]} 37...
h4 {[%clk 0:00:41]} 38. f5 {[%clk 0:02:20.3]} 38... exf5 {[%clk 0:00:39.4]} 39.
Qxf5 {[%clk 0:02:22.2]} 39... Qb6 {[%clk 0:00:38.4]} 40. Qe4 {[%clk 0:02:16.5]}
40... Qb3 {[%clk 0:00:37.1]} 41. Rc3 {[%clk 0:02:09.7]} 41... Qxb2+ {[%clk
0:00:37.9]} 42. R1c2 {[%clk 0:02:11]} 42... Qa1 {[%clk 0:00:38.5]} 43. d5 {[%clk
0:02:09.4]} 43... Re8 {[%clk 0:00:34.2]} 44. Rc8 {[%clk 0:02:08.1]} 44... Rxc8
{[%clk 0:00:33.9]} 45. Rxc8+ {[%clk 0:02:10]} 45... Bf8 {[%clk 0:00:35.5]} 46.
e6 {[%clk 0:02:08.7]} 46... Qb2+ {[%clk 0:00:33]} 47. Rc2 {[%clk 0:02:09.9]}
47... Qb3 {[%clk 0:00:16.8]} 48. exf7+ {[%clk 0:02:09.1]} 48... Kh8 {[%clk
0:00:18]} 49. Qe5+ {[%clk 0:02:03.2]} 49... Kh7 {[%clk 0:00:18.4]} 50. Qh5+
{[%clk 0:02:03.9]} 50... Kg7 {[%clk 0:00:15.1]} 51. Qg5+ {[%clk 0:02:04.6]}
51... Kxf7 {[%clk 0:00:13.8]} 52. Rf2+ {[%clk 0:02:05.2]} 52... Ke8 {[%clk
0:00:14.7]} 53. Qg6+ {[%clk 0:02:05.3]} 53... Kd7 {[%clk 0:00:13.3]} 54. Qc6+
{[%clk 0:02:04]} 54... Ke7 {[%clk 0:00:09.9]} 55. Qe6+ {[%clk 0:02:01.1]} 55...
Kd8 {[%clk 0:00:11]} 56. Rxf8+ {[%clk 0:02:02.7]} 56... Kc7 {[%clk 0:00:12.9]}
57. Rc8+ {[%clk 0:02:03.8]} 57... Kb7 {[%clk 0:00:14.4]} 58. Qc6+ {[%clk
0:02:05.1]} 1-0

[Event "*** Titled Tuesday Blitz"]
[Site "Chess.com"]
[Date "2020.01.07"]
[Round "2"]
[White "Moon_stone123"]
[Black "dianosky"]
[Result "1/2-1/2"]
[WhiteElo "2088"]
[BlackElo "2379"]
[TimeControl "180+2"]
[EndTime "13:25:24 PST"]
[Termination "Game drawn by agreement"]

1. e4 {[%clk 0:03:01.9]} 1... c5 {[%clk 0:03:00.7]} 2. Nf3 {[%clk 0:03:02.8]}
2... a6 {[%clk 0:03:01.7]} 3. c4 {[%clk 0:03:02.8]} 3... Nc6 {[%clk 0:03:02.4]}
4. Nc3 {[%clk 0:03:02.4]} 4... e5 {[%clk 0:03:03.4]} 5. d3 {[%clk 0:03:02.1]}
5... h6 {[%clk 0:03:04.6]} 6. g3 {[%clk 0:02:56.4]} 6... d6 {[%clk 0:03:04.1]}
7. h3 {[%clk 0:02:55.7]} 7... g6 {[%clk 0:03:05.5]} 8. Bg2 {[%clk 0:02:56.8]}
8... Bg7 {[%clk 0:03:07.3]} 9. O-O {[%clk 0:02:58.2]} 9... Nge7 {[%clk 0:03:09]}
10. Nh2 {[%clk 0:02:56.8]} 10... O-O {[%clk 0:03:10.4]} 11. Be3 {[%clk
0:02:44.4]} 11... Kh7 {[%clk 0:03:09.3]} 12. Qd2 {[%clk 0:02:41.9]} 12... f5
{[%clk 0:03:09.5]} 13. f4 {[%clk 0:02:43.1]} 13... exf4 {[%clk 0:03:05.4]} 14.
Bxf4 {[%clk 0:02:42.9]} 14... g5 {[%clk 0:03:03.2]} 15. Be3 {[%clk 0:02:38.3]}
15... Nd4 {[%clk 0:02:59.9]} 16. Ne2 {[%clk 0:02:07.8]} 16... Nec6 {[%clk
0:02:54.1]} 17. Nf3 {[%clk 0:01:57.6]} 17... Nxf3+ {[%clk 0:02:49.4]} 18. Bxf3
{[%clk 0:01:59.5]} 18... Ne5 {[%clk 0:02:41.1]} 19. Bg2 {[%clk 0:01:57]} 19...
fxe4 {[%clk 0:02:42.4]} 20. Bxe4+ {[%clk 0:01:58.9]} 20... Kh8 {[%clk
0:02:43.4]} 21. Bg2 {[%clk 0:01:56.6]} 21... Qe7 {[%clk 0:02:36.9]} 22. Nc3
{[%clk 0:01:53.9]} 22... Be6 {[%clk 0:02:36.7]} 23. Rae1 {[%clk 0:01:54.7]}
23... Rxf1+ {[%clk 0:02:31.9]} 24. Rxf1 {[%clk 0:01:54.1]} 24... Qd7 {[%clk
0:02:33]} 25. Kh2 {[%clk 0:01:53.1]} 25... Rf8 {[%clk 0:02:31.8]} 26. Rxf8+
{[%clk 0:01:53.4]} 26... Bxf8 {[%clk 0:02:32.9]} 27. Nd5 {[%clk 0:01:50.3]}
27... Bg7 {[%clk 0:02:30.5]} 28. b3 {[%clk 0:01:49.1]} 28... Qf7 {[%clk
0:02:27.2]} 29. Qe2 {[%clk 0:01:42]} 29... g4 {[%clk 0:02:23.4]} 30. Nf4 {[%clk
0:01:34.9]} 30... Bf5 {[%clk 0:02:16.8]} 31. h4 {[%clk 0:01:26.1]} 31... b5
{[%clk 0:02:12.2]} 32. d4 {[%clk 0:01:18.6]} 32... cxd4 {[%clk 0:02:05.5]} 33.
Bxd4 {[%clk 0:01:20.5]} 33... bxc4 {[%clk 0:02:07.2]} 34. bxc4 {[%clk
0:01:19.5]} 34... Kh7 {[%clk 0:01:38.3]} 35. c5 {[%clk 0:01:10.3]} 35... Nf3+
{[%clk 0:01:34.7]} 36. Bxf3 {[%clk 0:01:11.8]} 36... gxf3 {[%clk 0:01:35.8]} 37.
Qe3 {[%clk 0:00:54.9]} 37... Qxa2+ {[%clk 0:01:21.9]} 38. Qf2 {[%clk 0:00:56.1]}
38... Qxf2+ {[%clk 0:01:15.7]} 39. Bxf2 {[%clk 0:00:58]} 39... dxc5 {[%clk
0:01:17.1]} 40. Bxc5 {[%clk 0:00:59.9]} 40... a5 {[%clk 0:01:18.6]} 41. Kg1
{[%clk 0:00:45.8]} 41... Bb2 {[%clk 0:01:17.8]} 42. Kf2 {[%clk 0:00:42.7]} 42...
a4 {[%clk 0:01:10.9]} 43. Kxf3 {[%clk 0:00:43.6]} 43... a3 {[%clk 0:01:12.3]}
44. Bxa3 {[%clk 0:00:45.3]} 44... Bxa3 {[%clk 0:01:13.7]} 45. g4 {[%clk
0:00:44.7]} 45... Bg6 {[%clk 0:01:12.1]} 46. g5 {[%clk 0:00:45.1]} 46... h5
{[%clk 0:01:11]} 47. Nxg6 {[%clk 0:00:44.2]} 47... Kxg6 {[%clk 0:01:12]} 48. Kg2
{[%clk 0:00:45.7]} 48... Bd6 {[%clk 0:01:10.4]} 49. Kh1 {[%clk 0:00:47.6]} 49...
Bg3 {[%clk 0:01:10.5]} 50. Kg2 {[%clk 0:00:48.6]} 50... Bxh4 {[%clk 0:01:12.3]}
51. Kh1 {[%clk 0:00:49.3]} 51... Bg3 {[%clk 0:01:11.9]} 52. Kg2 {[%clk
0:00:50.8]} 52... h4 {[%clk 0:01:13.8]} 53. Kh1 {[%clk 0:00:51.7]} 53... Kxg5
{[%clk 0:01:15.7]} 54. Kg2 {[%clk 0:00:53]} 54... Kg4 {[%clk 0:01:17.6]} 55. Kh1
{[%clk 0:00:54.3]} 55... h3 {[%clk 0:01:19.5]} 56. Kg1 {[%clk 0:00:55.6]}
1/2-1/2

[Event "*** Titled Tuesday Blitz"]
[Site "Chess.com"]
[Date "2020.01.07"]
[Round "2"]
[White "Sven_Tica"]
[Black "DonPreuss"]
[Result "1-0"]
[WhiteElo "2660"]
[BlackElo "2148"]
[TimeControl "180+2"]
[EndTime "13:25:25 PST"]
[Termination "Sven_Tica won by resignation"]

1. d4 {[%clk 0:03:01.9]} 1... Nc6 {[%clk 0:03:00.3]} 2. c4 {[%clk 0:03:00.2]}
2... e5 {[%clk 0:03:00.1]} 3. d5 {[%clk 0:02:59.7]} 3... Nce7 {[%clk 0:03:00.8]}
4. Nc3 {[%clk 0:03:01.1]} 4... Ng6 {[%clk 0:03:01.8]} 5. e4 {[%clk 0:03:01.2]}
5... Bc5 {[%clk 0:03:02.5]} 6. Nf3 {[%clk 0:02:59.9]} 6... d6 {[%clk 0:03:03.1]}
7. h3 {[%clk 0:03:00.8]} 7... N8e7 {[%clk 0:03:03.8]} 8. a3 {[%clk 0:02:54.9]}
8... a6 {[%clk 0:03:04.9]} 9. b4 {[%clk 0:02:55.8]} 9... Ba7 {[%clk 0:03:05.8]}
10. Bd3 {[%clk 0:02:50.1]} 10... O-O {[%clk 0:03:06]} 11. g4 {[%clk 0:02:45.7]}
11... Nf4 {[%clk 0:02:41.5]} 12. Bxf4 {[%clk 0:02:43.9]} 12... exf4 {[%clk
0:02:43.4]} 13. Ne2 {[%clk 0:02:44.9]} 13... Ng6 {[%clk 0:02:43.8]} 14. Qc1
{[%clk 0:02:39.4]} 14... Nh4 {[%clk 0:02:33.5]} 15. Nxh4 {[%clk 0:02:38.9]}
15... Qxh4 {[%clk 0:02:33.5]} 16. Qxf4 {[%clk 0:02:40.3]} 16... Bxg4 {[%clk
0:02:04.9]} 17. Qxg4 {[%clk 0:02:36.2]} 17... Qxf2+ {[%clk 0:02:05.5]} 18. Kd2
{[%clk 0:02:23.5]} 18... Qe3+ {[%clk 0:01:57.5]} 19. Kc2 {[%clk 0:02:24.4]}
19... f5 {[%clk 0:01:57.5]} 20. Qg3 {[%clk 0:02:14.4]} 20... Qh6 {[%clk
0:01:55.2]} 21. Rhf1 {[%clk 0:02:11.2]} 21... fxe4 {[%clk 0:01:52.6]} 22. Rxf8+
{[%clk 0:02:11.4]} 22... Rxf8 {[%clk 0:01:52.6]} 23. Bxe4 {[%clk 0:02:12.4]}
23... Re8 {[%clk 0:01:50.1]} 24. Qf3 {[%clk 0:02:05.8]} 24... Rf8 {[%clk
0:01:33.3]} 25. Qg3 {[%clk 0:01:59.1]} 25... Re8 {[%clk 0:01:33.9]} 26. Nc3
{[%clk 0:01:34.2]} 26... Bd4 {[%clk 0:01:18.8]} 27. Re1 {[%clk 0:01:35.2]} 27...
Rf8 {[%clk 0:01:13.4]} 28. Re2 {[%clk 0:01:32.3]} 28... Rf1 {[%clk 0:01:09.6]}
29. Kb3 {[%clk 0:01:30.3]} 29... Be5 {[%clk 0:00:27]} 30. Qg4 {[%clk 0:01:29.7]}
30... Qc1 {[%clk 0:00:18.2]} 31. Qe6+ {[%clk 0:01:19.3]} 31... Kf8 {[%clk
0:00:17.1]} 32. Qc8+ {[%clk 0:01:19.1]} 32... Kf7 {[%clk 0:00:16.9]} 33. Qxc7+
{[%clk 0:01:19.8]} 33... Kf8 {[%clk 0:00:18.2]} 34. Qd8+ {[%clk 0:01:20.2]}
34... Kf7 {[%clk 0:00:18]} 35. Qd7+ {[%clk 0:01:15.9]} 35... Kf8 {[%clk
0:00:18.9]} 36. Qc8+ {[%clk 0:01:16.9]} 36... Kf7 {[%clk 0:00:20.1]} 37. Qxb7+
{[%clk 0:01:18]} 37... Kf6 {[%clk 0:00:20.1]} 38. Rc2 {[%clk 0:01:18.9]} 38...
Qa1 {[%clk 0:00:16.3]} 39. Qd7 {[%clk 0:01:03.9]} 39... Rf4 {[%clk 0:00:15.9]}
40. Qe6+ {[%clk 0:01:04.7]} 40... Kg5 {[%clk 0:00:16.4]} 41. Rg2+ {[%clk
0:01:00.7]} 41... Kh4 {[%clk 0:00:15.7]} 42. Rg4+ {[%clk 0:00:59.4]} 42... Kxh3
{[%clk 0:00:16.6]} 43. Rxf4+ {[%clk 0:01:00.5]} 1-0